[Event "CZE-ch U16 Girls 2023"]
[Site "Teplice"]
[Date "2023.03.13"]
[Round "3.3"]
[White "Cinkova, Vicky"]
[Black "Janouskova, Adela"]
[Result "1-0"]
[ECO "A10"]
[WhiteElo "1285"]
[BlackElo "1558"]
[Annotator "NA RC COMBH"]
[PlyCount "135"]
[EventDate "2023.03.09"]
[EventType "swiss"]
[EventCountry "CZE"]
[SourceTitle "playchess.com"]
[Source "ChessBase"]
[SourceQuality "1"]
[TimeControl "40/5400+30:1800+30"]

1. c4 {[%emt 0:00:11]} f5 {[%emt 0:00:18]} 2. Nc3 {[%emt 0:00:24]} Nf6 {[%emt 0:01:36]} 3. g3 {[%emt 0:00:22]} g6 {[%emt 0:01:08]} 4. Bg2 {[%emt 0:00:52]} Bg7 {[%emt 0:00:12]} 5. d3 {[%emt 0:00:51]} O-O {[%emt 0:02:03]} 6. Nf3 {[%emt 0:00:50]} d6 {[%emt 0:01:24]} 7. O-O {[%emt 0:01:31]} Nbd7 {[%emt 0:03:38]} 8. Bd2 {[%emt 0:02:39]} e5 {[%emt 0:03:31]} 9. b4 {[%emt 0:04:44]} Re8 {[%emt 0:02:37]} 10. Rc1 {[%emt 0:09:23]} Rb8 {[%emt 0:03:39]} 11. a4 {[%emt 0:08:07]} b6 {[%emt 0:03:02]} 12. Qc2 {[%emt 0:13:57]} Bb7 {[%emt 0:02:31]} 13. Rb1 {[%emt 0:03:55]} a6 {[%emt 0:11:31]} 14. Qa2 {[%emt 0:10:02]} Kf8 {[%emt 0:07:07]} 15. a5 {[%emt 0:15:46]} bxa5 {[%emt 0:07:44]} 16. bxa5 {[%emt 0:02:10]} Nc5 {[%emt 0:05:45]} 17. Na4 {[%emt 0:05:14]} Nfd7 {[%emt 0:12:21]} 18. Bb4 {[%emt 0:06:53]} Ne6 {[%emt 0:04:22]} 19. Qa3 {[%emt 0:00:40]} Kg8 {[%emt 0:01:51]} 20. c5 {[%emt 0:01:11]} dxc5 {[%emt 0:09:23]} 21. Nxc5 {[%emt 0:00:27]} Ndxc5 {[%emt 0:00:25]} 22. Bxc5 {[%emt 0:00:14]} Nxc5 {[%emt 0:00:53]} 23. Qxc5 {[%emt 0:00:03]} h6 {[%emt 0:12:18]} 24. Rfc1 {[%emt 0:03:29]} c6 {[%emt 0:01:33]} 25. Nh4 {[%emt 0:00:39]} Qf6 {[%emt 0:01:12]} 26. Bxc6 {[%emt 0:01:31]} Bxc6 {[%emt 0:00:17]} 27. Rxb8 {[%emt 0:00:27]} Rxb8 {[%emt 0:00:06]} 28. Qxc6 {[%emt 0:00:07]} Rf8 {[%emt 0:01:17]} 29. Qd5+ {[%emt 0:00:48]} Kh7 {[%emt 0:00:11]} 30. Rc6 {[%emt 0:00:49]} Qg5 {[%emt 0:00:53]} 31. Rxa6 {[%emt 0:03:10]} Qc1+ {[%emt 0:00:16]} 32. Kg2 {[%emt 0:00:07]} g5 {[%emt 0:00:14]} 33. Ng6 {[%emt 0:01:37]} Re8 {[%emt 0:00:51]} 34. Qf7 {[%emt 0:02:13]} Qc8 {[%emt 0:00:35]} 35. Ra7 {[%emt 0:00:36]} Qc6+ {[%emt 0:00:12]} 36. f3 {[%emt 0:01:22]} Qxg6 {[%emt 0:00:05]} 37. Qxg6+ {[%emt 0:00:44]} Kxg6 {[%emt 0:00:04]} 38. Rb7 {[%emt 0:00:25]} Ra8 {[%emt 0:01:23]} 39. Rb6+ {[%emt 0:00:10]} Kf7 {[%emt 0:00:17]} 40. a6 {[%emt 0:00:11]} Kf8 {[%emt 0:01:06]} 41. f4 {[%emt 0:02:33]} e4 {[%emt 0:07:48]} 42. dxe4 {[%emt 0:02:59]} fxe4 {[%emt 0:00:08]} 43. fxg5 {[%emt 0:01:00]} hxg5 {[%emt 0:00:06]} 44. Kh3 {[%emt 0:05:37]} Bd4 {[%emt 0:03:50]} 45. Re6 {[%emt 0:00:59]} e3 {[%emt 0:01:53]} 46. Kg4 {[%emt 0:02:51]} Kf7 {[%emt 0:00:49]} 47. Re4 {[%emt 0:00:46]} Bb6 {[%emt 0:03:10]} 48. Ra4 {[%emt 0:03:55]} Kg6 {[%emt 0:01:38]} 49. h4 {[%emt 0:04:32]} gxh4 {[%emt 0:01:05]} 50. gxh4 {[%emt 0:00:42]} Rd8 {[%emt 0:05:03]} 51. a7 {[%emt 0:01:30]} Ra8 {[%emt 0:01:01]} 52. Ra6 {[%emt 0:00:11]} Rxa7 {[%emt 0:00:14]} 53. Rxb6+ {[%emt 0:00:03]} Kh7 {[%emt 0:00:16]} 54. Re6 {[%emt 0:01:20]} Ra4+ {[%emt 0:00:35]} 55. Kg3 {[%emt 0:00:46]} Ra3 {[%emt 0:00:30]} 56. Kf3 {[%emt 0:00:17]} Ra4 {[%emt 0:00:44]} 57. h5 {[%emt 0:01:07]} Rh4 {[%emt 0:02:27]} 58. h6 {[%emt 0:00:20]} Rxh6 {[%emt 0:00:42]} 59. Rxh6+ {[%emt 0:00:06]} Kxh6 {[%emt 0:00:02]} 60. Kxe3 {[%emt 0:00:17]} Kg6 {[%emt 0:00:13]} 61. Ke4 {[%emt 0:00:32]} Kf6 {[%emt 0:00:18]} 62. Kd5 {[%emt 0:00:49]} Ke7 {[%emt 0:00:25]} 63. e3 {[%emt 0:01:22]} Kf6 {[%emt 0:02:04]} 64. e4 {[%emt 0:00:20]} Kf7 {[%emt 0:00:47]} 65. Kd6 {[%emt 0:00:35]} Ke8 {[%emt 0:00:15]} 66. e5 {[%emt 0:00:37]} Kd8 {[%emt 0:00:06]} 67. e6 {[%emt 0:00:12]} Ke8 {[%emt 0:00:22]} 68. e7 {[%emt 0:00:09]} 1-0

[Event "CZE-ch U16 Girls 2023"]
[Site "Teplice"]
[Date "2023.03.13"]
[Round "3.4"]
[White "Vacekova, Anita"]
[Black "Vavrinkova, Marie"]
[Result "1-0"]
[ECO "B42"]
[WhiteElo "1350"]
[BlackElo "1457"]
[Annotator "NA RC COMBH"]
[PlyCount "135"]
[EventDate "2023.03.09"]
[EventType "swiss"]
[EventCountry "CZE"]
[SourceTitle "playchess.com"]
[Source "ChessBase"]
[SourceQuality "1"]
[TimeControl "40/5400+30:1800+30"]

1. e4 {[%emt 0:00:12]} c5 {[%emt 0:00:17]} 2. Nf3 {[%emt 0:00:11]} e6 {[%emt 0:00:10]} 3. d4 {[%emt 0:00:13]} cxd4 {[%emt 0:00:11]} 4. Nxd4 {[%emt 0:00:08]} a6 {[%emt 0:00:27]} 5. Bd3 {[%emt 0:01:36]} Bc5 {[%emt 0:00:58]} 6. Nb3 {[%emt 0:03:05]} Be7 {[%emt 0:00:20]} 7. O-O {[%emt 0:02:22]} d6 {[%emt 0:01:03]} 8. Be3 {[%emt 0:08:54]} Nf6 {[%emt 0:03:01]} 9. N1d2 {[%emt 0:02:57]} Nbd7 {[%emt 0:03:54]} 10. f4 {[%emt 0:10:54]} b6 {[%emt 0:04:27]} 11. Qe2 {[%emt 0:10:06]} Bb7 {[%emt 0:04:35]} 12. Rad1 {[%emt 0:09:40]} Qc7 {[%emt 0:04:39]} 13. Bd4 {[%emt 0:08:38]} h5 {[%emt 0:07:09]} 14. h3 {[%emt 0:05:41]} h4 {[%emt 0:11:11]} 15. e5 {[%emt 0:06:31]} dxe5 {[%emt 0:01:59]} 16. fxe5 {[%emt 0:00:35]} Nh5 {[%emt 0:01:43]} 17. Qg4 {[%emt 0:03:41]} Nxe5 {[%emt 0:03:00]} 18. Bxe5 {[%emt 0:02:30]} Qxe5 {[%emt 0:00:18]} 19. Rde1 {[%emt 0:02:26]} Qc7 {[%emt 0:12:36]} 20. Ne4 {[%emt 0:07:48]} Rh6 {[%emt 0:09:17]} 21. Ng5 {[%emt 0:03:07]} Nf6 {[%emt 0:02:16]} 22. Qf4 {[%emt 0:01:57]} Qxf4 {[%emt 0:03:00]} 23. Rxf4 {[%emt 0:00:09]} Bd6 {[%emt 0:05:58]} 24. Rff1 {[%emt 0:02:42]} Bg3 {[%emt 0:00:54]} 25. Rd1 {[%emt 0:00:40]} Rh5 {[%emt 0:01:14]} 26. Nf3 {[%emt 0:00:39]} e5 {[%emt 0:02:37]} 27. Nfd2 {[%emt 0:02:13]} e4 {[%emt 0:01:45]} 28. Be2 {[%emt 0:00:08]} Re5 {[%emt 0:02:24]} 29. Nc4 {[%emt 0:00:15]} Re7 {[%emt 0:04:00]} 30. Nxb6 {[%emt 0:00:40]} Rd8 {[%emt 0:00:15]} 31. Nc5 {[%emt 0:01:12]} e3 {[%emt 0:01:57]} 32. Rxd8+ {[%emt 0:02:22]} Kxd8 {[%emt 0:00:27]} 33. Nxb7+ {[%emt 0:00:06]} Rxb7 {[%emt 0:00:12]} 34. Nc4 {[%emt 0:00:20]} Bf2+ {[%emt 0:00:55]} 35. Kh2 {[%emt 0:00:39]} Ne4 {[%emt 0:01:18]} 36. Rd1+ {[%emt 0:00:59]} Rd7 {[%emt 0:01:11]} 37. Rxd7+ {[%emt 0:00:23]} Kxd7 {[%emt 0:00:08]} 38. Ne5+ {[%emt 0:00:48]} Ke6 {[%emt 0:01:14]} 39. Nd3 {[%emt 0:01:04]} f5 {[%emt 0:03:13]} 40. Nxf2 {[%emt 0:00:56]} exf2 {[%emt 0:00:27]} 41. g4 {[%emt 0:30:23]} Ng3 {[%emt 0:31:04]} 42. Bc4+ {[%emt 0:00:00]} Ke5 {[%emt 0:00:00]} 43. Kg2 {[%emt 0:00:00]} fxg4 {[%emt 0:00:00]} 44. hxg4 {[%emt 0:00:00]} Ne4 {[%emt 0:00:00]} 45. Bxa6 {[%emt 0:00:00]} Kf4 {[%emt 0:00:00]} 46. Be2 {[%emt 0:00:00]} Ke3 {[%emt 0:00:00]} 47. Bd3 {[%emt 0:00:00]} Nc5 {[%emt 0:00:00]} 48. Bb5 {[%emt 0:00:00]} Kf4 {[%emt 0:00:00]} 49. Kxf2 {[%emt 0:00:33]} Kxg4 {[%emt 0:00:00]} 50. a4 {[%emt 0:00:38]} h3 {[%emt 0:00:00]} 51. a5 {[%emt 0:00:42]} Ne4+ {[%emt 0:00:00]} 52. Ke3 {[%emt 0:01:13]} h2 {[%emt 0:00:00]} 53. Be2+ {[%emt 0:00:08]} Kg3 {[%emt 0:00:00]} 54. Bf3 {[%emt 0:00:14]} Nd6 {[%emt 0:00:00]} 55. Ke2 {[%emt 0:02:08]} g5 {[%emt 0:00:00]} 56. a6 {[%emt 0:00:25]} Nb5 {[%emt 0:00:00]} 57. c3 {[%emt 0:00:26]} g4 {[%emt 0:00:00]} 58. Bh1 {[%emt 0:00:32]} Kh3 {[%emt 0:00:00]} 59. Kf2 {[%emt 0:00:23]} Na7 {[%emt 0:02:05]} 60. b4 {[%emt 0:00:33]} g3+ {[%emt 0:00:16]} 61. Kf1 {[%emt 0:00:57]} Kg4 {[%emt 0:00:25]} 62. Bd5 {[%emt 0:00:28]} Kf5 {[%emt 0:00:24]} 63. Kg2 {[%emt 0:00:21]} Ke5 {[%emt 0:00:11]} 64. c4 {[%emt 0:00:14]} Kd6 {[%emt 0:00:23]} 65. Kxg3 {[%emt 0:00:27]} Kc7 {[%emt 0:00:14]} 66. Kxh2 {[%emt 0:00:26]} Kc8 {[%emt 0:01:16]} 67. Kg3 {[%emt 0:00:16]} Kb8 {[%emt 0:00:11]} 68. Bb7 {[%emt 0:00:23]} 1-0

[Event "CZE-ch U16 Girls 2023"]
[Site "Teplice"]
[Date "2023.03.13"]
[Round "3.5"]
[White "Dominikova, Denisa"]
[Black "Sikorova, Jana"]
[Result "1/2-1/2"]
[ECO "B28"]
[WhiteElo "1301"]
[BlackElo "1735"]
[Annotator "NA RC COMBH"]
[PlyCount "73"]
[EventDate "2023.03.09"]
[EventType "swiss"]
[EventCountry "CZE"]
[SourceTitle "playchess.com"]
[Source "ChessBase"]
[SourceQuality "1"]
[TimeControl "40/5400+30:1800+30"]

1. e4 {[%emt 0:00:05]} c5 {[%emt 0:00:07]} 2. Nf3 {[%emt 0:00:17]} a6 {[%emt 0:00:11]} 3. d4 {[%emt 0:01:03]} cxd4 {[%emt 0:00:21]} 4. Nxd4 {[%emt 0:00:33]} Nf6 {[%emt 0:00:18]} 5. Bd3 {[%emt 0:02:13]} e5 {[%emt 0:02:36]} 6. Nb3 {[%emt 0:03:37]} Nc6 {[%emt 0:00:50]} 7. Nc3 {[%emt 0:02:03]} Bb4 {[%emt 0:01:12]} 8. Bd2 {[%emt 0:02:14]} d5 {[%emt 0:03:01]} 9. Nxd5 {[%emt 0:07:11]} Nxd5 {[%emt 0:02:35]} 10. exd5 {[%emt 0:00:52]} Qxd5 {[%emt 0:02:01]} 11. O-O {[%emt 0:03:06]} Be6 {[%emt 0:03:02]} 12. Re1 {[%emt 0:03:52]} Bxd2 {[%emt 0:03:21]} 13. Qxd2 {[%emt 0:01:53]} Rd8 {[%emt 0:01:22]} 14. Qg5 {[%emt 0:04:08]} O-O {[%emt 0:03:42]} 15. Rad1 {[%emt 0:05:35]} e4 {[%emt 0:08:01]} 16. Qxd5 {[%emt 0:02:13]} Bxd5 {[%emt 0:00:09]} 17. Bf1 {[%emt 0:06:29]} f5 {[%emt 0:04:12]} 18. Rxd5 {[%emt 0:03:57]} Rxd5 {[%emt 0:02:19]} 19. Bc4 {[%emt 0:00:20]} Rfd8 {[%emt 0:00:41]} 20. Rd1 {[%emt 0:08:54]} Ne7 {[%emt 0:00:28]} 21. Nc5 {[%emt 0:02:32]} b6 {[%emt 0:06:21]} 22. Bxd5+ {[%emt 0:01:03]} Nxd5 {[%emt 0:12:36]} 23. Nxa6 {[%emt 0:02:42]} Ra8 {[%emt 0:01:02]} 24. Rxd5 {[%emt 0:00:59]} Rxa6 {[%emt 0:00:08]} 25. a3 {[%emt 0:00:45]} g6 {[%emt 0:02:07]} 26. Rd7 {[%emt 0:02:51]} Ra5 {[%emt 0:04:12]} 27. Kf1 {[%emt 0:01:27]} Rc5 {[%emt 0:02:25]} 28. c3 {[%emt 0:01:32]} b5 {[%emt 0:01:58]} 29. Ke2 {[%emt 0:01:09]} h5 {[%emt 0:04:10]} 30. h4 {[%emt 0:03:17]} Kf8 {[%emt 0:00:56]} 31. Ke3 {[%emt 0:01:32]} Ke8 {[%emt 0:01:29]} 32. Rg7 {[%emt 0:01:18]} Rc6 {[%emt 0:01:04]} 33. Rb7 {[%emt 0:00:35]} Rc5 {[%emt 0:02:54]} 34. Kd4 {[%emt 0:00:40]} Rc4+ {[%emt 0:01:04]} 35. Ke3 {[%emt 0:04:28]} Rc5 {[%emt 0:00:15]} 36. Kd4 {[%emt 0:05:59]} Rc4+ {[%emt 0:00:10]} 37. Ke3 {[%emt 0:03:02]} 1/2-1/2

[Event "CZE-ch U16 Girls 2023"]
[Site "Teplice"]
[Date "2023.03.13"]
[Round "3.6"]
[White "Seda, Michaela"]
[Black "Andilova, Klara"]
[Result "1/2-1/2"]
[ECO "C61"]
[WhiteElo "1610"]
[BlackElo "1104"]
[Annotator "NA RC COMBH"]
[PlyCount "103"]
[EventDate "2023.03.09"]
[EventType "swiss"]
[EventCountry "CZE"]
[SourceTitle "playchess.com"]
[Source "ChessBase"]
[SourceQuality "1"]
[TimeControl "40/5400+30:1800+30"]

1. e4 {[%emt 0:00:03]} e5 {[%emt 0:00:08]} 2. Nf3 {[%emt 0:00:04]} Nc6 {[%emt 0:00:06]} 3. Bb5 {[%emt 0:00:02]} Nd4 {[%emt 0:00:07]} 4. Nxd4 {[%emt 0:00:08]} exd4 {[%emt 0:00:07]} 5. d3 {[%emt 0:00:35]} c6 {[%emt 0:00:39]} 6. Bc4 {[%emt 0:00:29]} Nf6 {[%emt 0:00:27]} 7. Bg5 {[%emt 0:00:27]} d6 {[%emt 0:02:04]} 8. O-O {[%emt 0:00:36]} Be7 {[%emt 0:05:23]} 9. Nd2 {[%emt 0:00:47]} b5 {[%emt 0:00:23]} 10. Bb3 {[%emt 0:00:13]} a5 {[%emt 0:00:13]} 11. a4 {[%emt 0:00:19]} b4 {[%emt 0:04:05]} 12. h3 {[%emt 0:01:22]} O-O {[%emt 0:02:31]} 13. f4 {[%emt 0:00:41]} Be6 {[%emt 0:05:13]} 14. Bxe6 {[%emt 0:02:19]} fxe6 {[%emt 0:00:55]} 15. Nf3 {[%emt 0:00:49]} Nd7 {[%emt 0:04:41]} 16. Nxd4 {[%emt 0:01:36]} Qb6 {[%emt 0:14:59]} 17. Bxe7 {[%emt 0:00:19]} Qxd4+ {[%emt 0:00:51]} 18. Kh1 {[%emt 0:01:05]} Rf7 {[%emt 0:00:55]} 19. Bh4 {[%emt 0:00:31]} Raf8 {[%emt 0:04:40]} 20. Bg3 {[%emt 0:00:44]} Qxb2 {[%emt 0:06:56]} 21. f5 {[%emt 0:11:10]} d5 {[%emt 0:09:41]} 22. Bd6 {[%emt 0:01:43]} Re8 {[%emt 0:00:45]} 23. fxe6 {[%emt 0:03:05]} Rxf1+ {[%emt 0:01:13]} 24. Qxf1 {[%emt 0:00:10]} Rxe6 {[%emt 0:01:26]} 25. Bc7 {[%emt 0:01:30]} Qxc2 {[%emt 0:04:46]} 26. Bxa5 {[%emt 0:00:36]} dxe4 {[%emt 0:03:04]} 27. Qf5 {[%emt 0:01:50]} Qb3 {[%emt 0:08:53]} 28. dxe4 {[%emt 0:03:15]} Nf8 {[%emt 0:06:27]} 29. e5 {[%emt 0:02:31]} g6 {[%emt 0:02:24]} 30. Qf4 {[%emt 0:01:48]} Re7 {[%emt 0:02:19]} 31. Bxb4 {[%emt 0:00:25]} Rf7 {[%emt 0:00:36]} 32. Qd2 {[%emt 0:03:27]} Nd7 {[%emt 0:02:04]} 33. Bc3 {[%emt 0:02:20]} Nc5 {[%emt 0:03:23]} 34. Qd4 {[%emt 0:13:09]} Ne6 {[%emt 0:01:13]} 35. Qd2 {[%emt 0:08:11]} Nc5 {[%emt 0:01:16]} 36. Qb2 {[%emt 0:00:40]} Qd5 {[%emt 0:01:52]} 37. Bd4 {[%emt 0:08:46]} Nd3 {[%emt 0:00:52]} 38. Qb8+ {[%emt 0:04:49]} Rf8 {[%emt 0:00:52]} 39. Qd6 {[%emt 0:01:11]} Qe4 {[%emt 0:00:57]} 40. Qe6+ {[%emt 0:03:53]} Kg7 {[%emt 0:00:31]} 41. Bg1 {[%emt 0:33:02]} Nf2+ {[%emt 0:30:27]} 42. Bxf2 {[%emt 0:00:43]} Rxf2 {[%emt 0:00:04]} 43. Qg4 {[%emt 0:00:52]} Qxe5 {[%emt 0:00:45]} 44. Rb1 {[%emt 0:05:12]} Qd5 {[%emt 0:00:00]} 45. Rb7+ {[%emt 0:00:00]} Rf7 {[%emt 0:00:00]} 46. Rxf7+ {[%emt 0:00:00]} Qxf7 {[%emt 0:00:00]} 47. Qd4+ {[%emt 0:00:00]} Kg8 {[%emt 0:00:00]} 48. a5 {[%emt 0:00:00]} Qf1+ {[%emt 0:00:00]} 49. Kh2 {[%emt 0:00:00]} Qb5 {[%emt 0:00:00]} 50. Qb6 {[%emt 0:00:00]} Qe5+ {[%emt 0:00:00]} 51. Kh1 {[%emt 0:00:00]} Qe1+ {[%emt 0:00:00]} 52. Kh2 {[%emt 0:00:00]} 1/2-1/2

[Event "CZE-ch U16 Girls 2023"]
[Site "Teplice"]
[Date "2023.03.13"]
[Round "3.7"]
[White "Souralova, Jana"]
[Black "Dobsa, Emma"]
[Result "0-1"]
[ECO "C49"]
[WhiteElo "1187"]
[BlackElo "1449"]
[Annotator "NA RC COMBH"]
[PlyCount "92"]
[EventDate "2023.03.09"]
[EventType "swiss"]
[EventCountry "CZE"]
[SourceTitle "playchess.com"]
[Source "ChessBase"]
[SourceQuality "1"]
[TimeControl "40/5400+30:1800+30"]

1. e4 {[%emt 0:00:08]} e5 {[%emt 0:00:16]} 2. Nf3 {[%emt 0:00:06]} Nc6 {[%emt 0:00:08]} 3. Nc3 {[%emt 0:00:07]} Nf6 {[%emt 0:00:07]} 4. Bb5 {[%emt 0:00:06]} Bb4 {[%emt 0:00:05]} 5. O-O {[%emt 0:00:15]} O-O {[%emt 0:00:03]} 6. d3 {[%emt 0:00:29]} d6 {[%emt 0:00:06]} 7. Ne2 {[%emt 0:00:11]} Bg4 {[%emt 0:00:08]} 8. Ng3 {[%emt 0:01:03]} Bxf3 {[%emt 0:04:47]} 9. gxf3 {[%emt 0:07:21]} h6 {[%emt 0:11:09]} 10. Be3 {[%emt 0:06:09]} Ne7 {[%emt 0:07:35]} 11. c3 {[%emt 0:02:28]} Ba5 {[%emt 0:00:08]} 12. Qd2 {[%emt 0:02:03]} c6 {[%emt 0:09:02]} 13. Ba4 {[%emt 0:00:17]} Kh7 {[%emt 0:05:40]} 14. Kh1 {[%emt 0:04:10]} d5 {[%emt 0:04:06]} 15. d4 {[%emt 0:18:47]} Ng6 {[%emt 0:17:13]} 16. Rg1 {[%emt 0:10:30]} Qc7 {[%emt 0:05:59]} 17. Bc2 {[%emt 0:06:10]} Rad8 {[%emt 0:06:05]} 18. Rad1 {[%emt 0:03:44]} dxe4 {[%emt 0:07:14]} 19. b4 {[%emt 0:09:29]} Bb6 {[%emt 0:05:44]} 20. Nxe4 {[%emt 0:00:31]} Nd5 {[%emt 0:04:41]} 21. Qd3 {[%emt 0:11:33]} exd4 {[%emt 0:02:23]} 22. Bxd4 {[%emt 0:03:59]} Nxb4 {[%emt 0:03:17]} 23. cxb4 {[%emt 0:01:37]} Rxd4 {[%emt 0:00:53]} 24. Qc3 {[%emt 0:02:33]} Rxd1 {[%emt 0:00:54]} 25. Rxd1 {[%emt 0:00:07]} Qf4 {[%emt 0:01:00]} 26. Nc5 {[%emt 0:01:25]} Bc7 {[%emt 0:00:32]} 27. Kg1 {[%emt 0:01:52]} Qxh2+ {[%emt 0:00:05]} 28. Kf1 {[%emt 0:00:08]} Qh1+ {[%emt 0:00:50]} 29. Ke2 {[%emt 0:00:19]} Re8+ {[%emt 0:00:42]} 30. Be4 {[%emt 0:01:23]} Qh2 {[%emt 0:01:39]} 31. Kf1 {[%emt 0:01:10]} b6 {[%emt 0:00:34]} 32. Nd3 {[%emt 0:00:32]} Kg8 {[%emt 0:00:37]} 33. Qxc6 {[%emt 0:01:08]} Qh3+ {[%emt 0:01:09]} 34. Ke2 {[%emt 0:01:45]} Re7 {[%emt 0:00:18]} 35. Qa8+ {[%emt 0:00:55]} Kh7 {[%emt 0:00:14]} 36. Kd2 {[%emt 0:00:24]} f5 {[%emt 0:00:56]} 37. Qc8 {[%emt 0:00:19]} Rf7 {[%emt 0:01:07]} 38. Rc1 {[%emt 0:00:40]} Bf4+ {[%emt 0:00:54]} 39. Nxf4 {[%emt 0:00:25]} Nxf4 {[%emt 0:00:06]} 40. Rc4 {[%emt 0:03:15]} fxe4 {[%emt 0:00:44]} 41. Qxh3 {[%emt 0:30:55]} Nxh3 {[%emt 0:30:17]} 42. fxe4 {[%emt 0:00:15]} Nxf2 {[%emt 0:00:31]} 43. e5 {[%emt 0:00:07]} Re7 {[%emt 0:00:25]} 44. Rf4 {[%emt 0:00:25]} Nh3 {[%emt 0:00:33]} 45. Re4 {[%emt 0:00:07]} Ng5 {[%emt 0:00:09]} 46. Re3 {[%emt 0:00:11]} Rxe5 {[%emt 0:00:09]} 0-1

[Event "CZE-ch U16 Girls 2023"]
[Site "Teplice"]
[Date "2023.03.13"]
[Round "3.8"]
[White "Macova, Marketa"]
[Black "Barteckova, Denisa"]
[Result "0-1"]
[ECO "B01"]
[WhiteElo "1195"]
[BlackElo "1417"]
[Annotator "NA COMBH"]
[PlyCount "104"]
[EventDate "2023.03.09"]
[EventType "swiss"]
[EventCountry "CZE"]
[SourceTitle "playchess.com"]
[Source "ChessBase"]
[SourceQuality "1"]
[TimeControl "40/5400+30:1800+30"]

1. e4 {[%emt 0:00:25]} d5 {[%emt 0:00:25]} 2. e5 {[%emt 0:00:56]} Bf5 {[%emt 0:01:35]} 3. Nf3 {[%emt 0:01:31]} e6 {[%emt 0:00:34]} 4. d4 {[%emt 0:00:57]} c5 {[%emt 0:01:10]} 5. c3 {[%emt 0:01:04]} Nc6 {[%emt 0:01:41]} 6. Bb5 {[%emt 0:03:17]} Qb6 {[%emt 0:00:57]} 7. Bxc6+ {[%emt 0:02:20]} bxc6 {[%emt 0:01:02]} 8. O-O {[%emt 0:02:50]} Bg4 {[%emt 0:05:47]} 9. dxc5 {[%emt 0:05:59]} Bxc5 {[%emt 0:00:54]} 10. b4 {[%emt 0:05:01]} Be7 {[%emt 0:00:45]} 11. Be3 {[%emt 0:01:10]} Qc7 {[%emt 0:00:58]} 12. Nbd2 {[%emt 0:02:50]} f6 {[%emt 0:03:44]} 13. Bf4 {[%emt 0:06:56]} g5 {[%emt 0:11:32]} 14. Bg3 {[%emt 0:05:04]} f5 {[%emt 0:01:43]} 15. h3 {[%emt 0:01:03]} Bh5 {[%emt 0:00:34]} 16. Re1 {[%emt 0:05:41]} Nh6 {[%emt 0:02:28]} 17. Qc2 {[%emt 0:02:30]} Bg6 {[%emt 0:01:24]} 18. Qb3 {[%emt 0:04:52]} O-O {[%emt 0:02:22]} 19. c4 {[%emt 0:04:24]} Rfb8 {[%emt 0:01:00]} 20. c5 {[%emt 0:04:30]} a5 {[%emt 0:01:24]} 21. a3 {[%emt 0:00:39]} Qb7 {[%emt 0:03:31]} 22. Nd4 {[%emt 0:07:49]} Kf7 {[%emt 0:01:57]} 23. f4 {[%emt 0:02:07]} g4 {[%emt 0:02:36]} 24. Rab1 {[%emt 0:04:22]} Qc7 {[%emt 0:10:34]} 25. h4 {[%emt 0:01:52]} Rb7 {[%emt 0:02:03]} 26. Kf2 {[%emt 0:05:33]} Bxc5 {[%emt 0:02:13]} 27. Qc3 {[%emt 0:01:18]} Bxd4+ {[%emt 0:01:05]} 28. Qxd4 {[%emt 0:00:17]} axb4 {[%emt 0:00:29]} 29. axb4 {[%emt 0:01:54]} Qb6 {[%emt 0:00:41]} 30. Qxb6 {[%emt 0:02:52]} Rxb6 {[%emt 0:00:18]} 31. Rb2 {[%emt 0:00:11]} Rab8 {[%emt 0:00:10]} 32. Reb1 {[%emt 0:00:08]} c5 {[%emt 0:08:33]} 33. b5 {[%emt 0:01:36]} Ke7 {[%emt 0:00:08]} 34. Ke2 {[%emt 0:00:12]} Be8 {[%emt 0:00:28]} 35. Bf2 {[%emt 0:00:56]} d4 {[%emt 0:00:18]} 36. g3 {[%emt 0:06:07]} Rxb5 {[%emt 0:00:18]} 37. Rxb5 {[%emt 0:00:19]} Rxb5 {[%emt 0:00:08]} 38. Ra1 {[%emt 0:01:40]} Rb7 {[%emt 0:02:06]} 39. Rc1 {[%emt 0:01:33]} Bb5+ {[%emt 0:01:55]} 40. Ke1 {[%emt 0:00:51]} c4 {[%emt 0:06:43]} 41. Bxd4 {[%emt 0:31:40]} Rc7 {[%emt 0:30:14]} 42. Rc3 {[%emt 0:00:00]} Nf7 {[%emt 0:00:00]} 43. Kd1 {[%emt 0:00:00]} Nd8 {[%emt 0:00:00]} 44. Ra3 {[%emt 0:00:00]} Kd7 {[%emt 0:00:00]} 45. Kc2 {[%emt 0:00:00]} Nc6 {[%emt 0:00:00]} 46. Bc5 {[%emt 0:00:00]} Nxe5 {[%emt 0:00:00]} 47. Be3 {[%emt 0:00:00]} Nc6 {[%emt 0:00:00]} 48. Kc3 {[%emt 0:00:00]} Ne7 {[%emt 0:00:00]} 49. Bf2 {[%emt 0:00:00]} Nd5+ {[%emt 0:00:00]} 50. Kd4 {[%emt 0:00:00]} c3 {[%emt 0:00:00]} 51. Nb3 {[%emt 0:00:00]} Rc4+ {[%emt 0:00:00]} 52. Ke5 {[%emt 0:00:00]} Re4# 0-1

[Event "CZE-ch U16 Girls 2023"]
[Site "Teplice"]
[Date "2023.03.13"]
[Round "3.10"]
[White "Mullerova, Karina Nela"]
[Black "Stavova, Marketa"]
[Result "1/2-1/2"]
[ECO "A00"]
[WhiteElo "1283"]
[BlackElo "1284"]
[Annotator "NA RC COMBH"]
[PlyCount "87"]
[EventDate "2023.03.09"]
[EventType "swiss"]
[EventCountry "CZE"]
[SourceTitle "playchess.com"]
[Source "ChessBase"]
[SourceQuality "1"]
[TimeControl "40/5400+30:1800+30"]

1. b4 {[%emt 0:00:25]} e5 {[%emt 0:00:49]} 2. Bb2 {[%emt 0:00:06]} d6 {[%emt 0:01:17]} 3. e3 {[%emt 0:00:21]} Nf6 {[%emt 0:01:01]} 4. c4 {[%emt 0:00:14]} Be6 {[%emt 0:01:29]} 5. d3 {[%emt 0:03:57]} Nbd7 {[%emt 0:01:51]} 6. Nd2 {[%emt 0:00:22]} c6 {[%emt 0:01:26]} 7. a3 {[%emt 0:05:53]} Qc7 {[%emt 0:05:34]} 8. Ngf3 {[%emt 0:01:16]} Be7 {[%emt 0:00:42]} 9. Be2 {[%emt 0:00:19]} O-O {[%emt 0:01:10]} 10. O-O {[%emt 0:00:15]} b6 {[%emt 0:04:21]} 11. Qc2 {[%emt 0:03:24]} Qb8 {[%emt 0:05:33]} 12. d4 {[%emt 0:07:15]} Ne8 {[%emt 0:04:15]} 13. Ne4 {[%emt 0:03:50]} Bf5 {[%emt 0:02:26]} 14. Bd3 {[%emt 0:01:26]} Bg6 {[%emt 0:06:35]} 15. Neg5 {[%emt 0:08:12]} f5 {[%emt 0:06:25]} 16. e4 {[%emt 0:06:35]} f4 {[%emt 0:02:28]} 17. dxe5 {[%emt 0:15:44]} dxe5 {[%emt 0:00:37]} 18. c5 {[%emt 0:04:06]} bxc5 {[%emt 0:04:17]} 19. bxc5 {[%emt 0:00:37]} Nef6 {[%emt 0:02:30]} 20. Rab1 {[%emt 0:03:02]} Qc8 {[%emt 0:02:27]} 21. Nxe5 {[%emt 0:06:24]} Nxe5 {[%emt 0:01:51]} 22. Bxe5 {[%emt 0:02:47]} h6 {[%emt 0:08:21]} 23. Qc4+ {[%emt 0:02:48]} Kh8 {[%emt 0:00:46]} 24. Ne6 {[%emt 0:02:43]} Bf7 {[%emt 0:00:31]} 25. Nxf8 {[%emt 0:07:36]} Bxc4 {[%emt 0:01:40]} 26. Ng6+ {[%emt 0:00:15]} Kh7 {[%emt 0:00:08]} 27. Nxe7 {[%emt 0:00:21]} Qe6 {[%emt 0:01:43]} 28. Bxc4 {[%emt 0:03:33]} Qxe7 {[%emt 0:03:22]} 29. Bd6 {[%emt 0:02:35]} Qxe4 {[%emt 0:00:14]} 30. Rbc1 {[%emt 0:00:32]} f3 {[%emt 0:02:42]} 31. Rfd1 {[%emt 0:02:32]} Qg4 {[%emt 0:00:59]} 32. Bg3 {[%emt 0:02:25]} Re8 {[%emt 0:02:30]} 33. h3 {[%emt 0:01:00]} Qh5 {[%emt 0:01:01]} 34. Bd3+ {[%emt 0:00:53]} Kh8 {[%emt 0:00:23]} 35. Bf1 {[%emt 0:00:38]} Rc8 {[%emt 0:03:11]} 36. Rd3 {[%emt 0:01:32]} fxg2 {[%emt 0:00:23]} 37. Bxg2 {[%emt 0:00:13]} Qg5 {[%emt 0:01:19]} 38. Rdd1 {[%emt 0:00:55]} Nh5 {[%emt 0:01:20]} 39. Bd6 {[%emt 0:01:22]} Nf4 {[%emt 0:01:12]} 40. Bxf4 {[%emt 0:00:17]} Qxf4 {[%emt 0:00:05]} 41. Re1 {[%emt 0:31:44]} Qg5 {[%emt 0:32:11]} 42. Kh1 {[%emt 0:00:00]} Qf4 {[%emt 0:00:00]} 43. Kg1 {[%emt 0:00:00]} Qg5 {[%emt 0:00:00]} 44. Kh1 {[%emt 0:00:00]} 1/2-1/2